lending/lending_fUSD_20260306
["ID","MTS","AMOUNT","RATE_DAILY","PERIOD"]
[407790486,1772803854735,-453.0,0.0002848,2]
[407790487,1772803854744,-500.0,0.0002848,2]
[407790488,1772803854754,-1146.0,0.0002848,2]
[407790489,1772803854763,-166.34,0.00028493,2]
[407790490,1772803854772,-480.49204324,0.00028493,5]
[407790491,1772803854782,-151.0,0.00028498,7]
[407790492,1772803854792,-151.0,0.00028498,7]
[407790493,1772803854801,-151.0,0.00028498,7]
[407790494,1772803854810,-150.0,0.00028544,2]
[407790495,1772803854819,-872.11184925,0.00028546,2]
[407790496,1772803854829,-3567.05,0.000286,7]
[407790497,1772803854839,-500.0,0.00028603,2]
[407790498,1772803854848,-151.0,0.00028609,7]
[407790499,1772803854857,-154.549663,0.00028609,7]
[407790500,1772803854867,-1000.0,0.00028609,2]
[407790501,1772803854876,-1315.0529832,0.00028646,15]
[407790502,1772803854886,-3558.61014686,0.00028654,2]
[407790503,1772803854895,-4341.52,0.000287,7]
[407790504,1772803854905,-524.0,0.00028754,2]
[407790505,1772803854914,-500.0,0.00028754,2]
[407790506,1772803854923,-500.0,0.00028754,2]
[407790507,1772803854933,-554.63301169,0.00028754,2]
[407790508,1772803854942,-441.0,0.00028754,2]
[407790509,1772803854951,-635.0,0.00028754,2]
[407790510,1772803854960,-582.0,0.00028754,2]
[407790511,1772803854969,-964.0,0.00028754,2]
[407790512,1772803854979,-266.60867263,0.00028754,2]
[407790513,1772803854990,-580.0,0.00028754,2]
[407790514,1772803855000,-563.0,0.00028754,2]
[407790515,1772803855010,-453.0,0.00028754,2]
[407790516,1772803855019,-470.0,0.00028754,2]
[407790517,1772803855029,-500.0,0.00028754,2]
[407790518,1772803855038,-1146.0,0.00028754,2]
[407790519,1772803855048,-153.25442737,0.00028756,2]
[407790520,1772803855057,-496.60968372,0.00028767,2]
[407790521,1772803855068,-1000.0,0.00028782,2]
[407790522,1772803855078,-151.0,0.00028785,2]
[407790523,1772803855088,-1000.0,0.00028883,2]
[407790524,1772803855098,-20005.18613638,0.000289,4]
[407790525,1772803855108,-151.04766822,0.00028971,5]
[407790526,1772803855118,-160.0,0.00029,30]
[407790527,1772803855128,-500.0,0.00029014,2]
[407790528,1772803855139,-524.0,0.00029028,2]
[407790529,1772803855148,-500.0,0.00029028,2]
[407790530,1772803855158,-500.0,0.00029028,2]
[407790531,1772803855168,-441.0,0.00029028,2]
[407790532,1772803855178,-635.0,0.00029028,2]
[407790533,1772803855187,-582.0,0.00029028,2]
[407790534,1772803855196,-964.0,0.00029028,2]
[407790535,1772803855206,-580.0,0.00029028,2]
[407790536,1772803855216,-563.0,0.00029028,2]
[407790537,1772803855225,-453.0,0.00029028,2]
[407790538,1772803855237,-470.0,0.00029028,2]
[407790539,1772803855247,-500.0,0.00029028,2]
[407790540,1772803855256,-554.58,0.00029032,120]
[407790541,1772803855266,-1000.0,0.00029157,2]
[407790542,1772803855275,-150.0,0.00029163,2]
[407790543,1772803855285,-150.0,0.00029163,2]
[407790544,1772803855295,-150.0,0.00029163,2]
[407790545,1772803855305,-150.0,0.00029163,2]
[407790546,1772803855314,-150.0,0.00029163,2]
[407790547,1772803855323,-150.0,0.00029163,2]
[407790548,1772803855333,-1279.0,0.00029163,2]
[407790549,1772803855342,-150.0,0.00029163,2]
[407790550,1772803855352,-1212.0,0.00029163,2]
[407790551,1772803855361,-922.0,0.00029163,2]
[407790552,1772803855372,-3502.0,0.00029163,2]
[407790553,1772803855382,-619.0,0.00029163,2]
[407790554,1772803855392,-524.0,0.00029302,2]
[407790555,1772803855401,-494.34534994,0.00029302,2]
[407790556,1772803855411,-500.0,0.00029302,2]
[407790557,1772803855421,-441.0,0.00029302,2]
[407790558,1772803855431,-635.0,0.00029302,2]
[407790559,1772803855441,-582.0,0.00029302,2]
[407790560,1772803855450,-964.0,0.00029302,2]
[407790561,1772803855459,-580.0,0.00029302,2]
[407790562,1772803855469,-563.0,0.00029302,2]
[407790563,1772803855479,-453.0,0.00029302,2]
[407790564,1772803855490,-470.0,0.00029302,2]
[407790565,1772803855500,-500.0,0.00029302,2]
[407790566,1772803855511,-151.0,0.00029333,2]
[407790567,1772803855520,-1000.0,0.00029431,2]
[407790568,1772803855529,-524.0,0.00029576,2]
[407790569,1772803855539,-500.0,0.00029576,2]
[407790570,1772803855548,-441.0,0.00029576,2]
[407790571,1772803855557,-635.0,0.00029576,2]
[407790572,1772803855567,-582.0,0.00029576,2]
[407790573,1772803855578,-964.0,0.00029576,2]
[407790574,1772803855592,-580.0,0.00029576,2]
[407790575,1772803855602,-563.0,0.00029576,2]
[407790576,1772803855613,-470.0,0.00029576,2]
[407790577,1772803855623,-453.0,0.00029576,2]
[407790578,1772803855633,-500.0,0.00029576,2]
[407790579,1772803855643,-3567.05,0.000296,7]
[407790580,1772803855655,-1000.0,0.00029705,2]
[407790581,1772803855666,-2500.0,0.00029822,5]
[407790582,1772803855676,-524.0,0.0002985,2]
[407790583,1772803855686,-500.0,0.0002985,2]
[407790584,1772803855697,-441.0,0.0002985,2]
[407790585,1772803855708,-635.0,0.0002985,2]
[407790586,1772803855718,-582.0,0.0002985,2]
[407790587,1772803855728,-964.0,0.0002985,2]
[407790588,1772803855739,-580.0,0.0002985,2]
[407790589,1772803855750,-563.0,0.0002985,2]
[407790590,1772803855760,-470.0,0.0002985,2]
[407790591,1772803855771,-453.0,0.0002985,2]
[407790592,1772803855781,-500.0,0.0002985,2]
[407790593,1772803855791,-153.25442745,0.00029862,2]
[407790594,1772803855802,-151.0,0.00029881,2]
[407790595,1772803855812,-79303.86601229,0.000299,2]
[407790596,1772803855822,-160.0,0.000299,30]
[407790597,1772803855832,-825.0,0.00029906,60]
[407790598,1772803855842,-150.0,0.00029971,2]
[407790599,1772803855852,-1000.0,0.00029979,2]
[407790600,1772803855863,-57306.98858547,0.0002999,30]
[407790601,1772803855873,-1186.40001992,0.0003,7]
[407790602,1772803855883,-360.0,0.0003,120]
[407790603,1772803855893,-1219.30618,0.0003,120]
[407790604,1772803855903,-67199.38591669,0.0003,5]
[407790605,1772803855913,-10000.0,0.0003,10]
[407790606,1772803855923,-1544.20872838,0.0003,3]
[407790607,1772803855933,-1563.86453971,0.0003,2]
[407790608,1772803855943,-18548.10598567,0.0003,2]
[407790609,1772803855953,-9500.0,0.0003,3]
[407790610,1772803855963,-19974.81059927,0.0003,2]
[407790611,1772803855973,-2000.0,0.0003,14]
[407790612,1772803855985,-160.0,0.0003,10]
[407790613,1772803855994,-160.0,0.0003,120]
[407790614,1772803856005,-160.0,0.0003,10]
[407790615,1772803856015,-175.33508358,0.0003,5]
[407790616,1772803856025,-524.0,0.00030124,2]
[407790617,1772803856036,-500.0,0.00030124,2]
[407790618,1772803856047,-441.0,0.00030124,2]
[407790619,1772803856056,-635.0,0.00030124,2]
[407790620,1772803856066,-582.0,0.00030124,2]
[407790621,1772803856084,-964.0,0.00030124,2]
[407790622,1772803856097,-580.0,0.00030124,2]
[407790623,1772803856108,-563.0,0.00030124,2]
[407790624,1772803856119,-470.0,0.00030124,2]
[407790625,1772803856130,-453.0,0.00030124,2]
[407790626,1772803856141,-13927.56386165,0.0003013,2]
[407790627,1772803856152,-7773.83602278,0.0003013,2]
[407790628,1772803856163,-192.61,0.00030137,2]
[407790629,1772803856174,-151.0,0.00030137,7]
[407790630,1772803856185,-151.0,0.00030137,7]
[407790631,1772803856195,-15621.16242939,0.000302,2]
[407790632,1772803856206,-1000.0,0.00030253,7]
[407790633,1772803856217,-524.0,0.00030398,2]
[407790634,1772803856228,-613.88026854,0.00030398,2]
[407790635,1772803856242,-441.0,0.00030398,2]
[407790636,1772803856253,-635.0,0.00030398,2]
[407790637,1772803856264,-582.0,0.00030398,2]
[407790638,1772803856275,-964.0,0.00030398,2]
[407790639,1772803856286,-580.0,0.00030398,2]
[407790640,1772803856297,-563.0,0.00030398,2]
[407790641,1772803856308,-470.0,0.00030398,2]
[407790642,1772803856319,-453.0,0.00030398,2]
[407790643,1772803856330,-4341.52,0.000304,7]
[407790644,1772803856341,-252.21,0.00030414,60]
[407790645,1772803856352,-151.0,0.00030429,2]
[407790646,1772803856364,-1000.0,0.00030527,7]
[407790647,1772803856375,-225.42379336,0.00030529,2]
[407790648,1772803856385,-3141.68308438,0.00030623,33]
[407790649,1772803856396,-524.0,0.00030672,2]
[407790650,1772803856407,-441.0,0.00030672,2]
[407790651,1772803856417,-635.0,0.00030672,2]
[407790652,1772803856428,-582.0,0.00030672,2]
[407790653,1772803856439,-964.0,0.00030672,2]
[407790654,1772803856449,-580.0,0.00030672,2]
[407790655,1772803856460,-563.0,0.00030672,2]
[407790656,1772803856471,-470.0,0.00030672,2]
[407790657,1772803856481,-453.0,0.00030672,2]
[407790658,1772803856494,-3567.05,0.000307,7]
[407790659,1772803856505,-1000.0,0.00030801,7]
[407790660,1772803856515,-1579.0175163,0.00030919,23]
[407790661,1772803856526,-1003.11,0.0003092,30]
[407790662,1772803856537,-524.0,0.00030946,2]
[407790663,1772803856548,-441.0,0.00030946,2]
[407790664,1772803856560,-635.0,0.00030946,2]
[407790665,1772803856570,-582.0,0.00030946,2]
[407790666,1772803856586,-964.0,0.00030946,2]
[407790667,1772803856596,-580.0,0.00030946,2]
[407790668,1772803856607,-563.0,0.00030946,2]
[407790669,1772803856619,-470.0,0.00030946,2]
[407790670,1772803856630,-453.0,0.00030946,2]
[407790671,1772803856641,-258.75727543,0.00030977,2]
[407790672,1772803856654,-51845.85233272,0.00031,2]
[407790673,1772803856665,-186.4015376,0.00031,30]
[407790674,1772803856676,-160.0,0.00031,7]
[407790675,1772803856687,-1000.0,0.00031075,7]
[407790676,1772803856699,-524.0,0.00031219,2]
[407790677,1772803856710,-441.0,0.00031219,2]
[407790678,1772803856721,-635.0,0.00031219,2]
[407790679,1772803856732,-582.0,0.00031219,2]
[407790680,1772803856743,-964.0,0.00031219,2]
[407790681,1772803856754,-580.0,0.00031219,2]
[407790682,1772803856774,-563.0,0.00031219,2]
[407790683,1772803856789,-470.0,0.00031219,2]
[407790684,1772803856807,-453.0,0.00031219,2]
[407790685,1772803856820,-2005.0,0.000313,2]
[407790686,1772803856832,-1000.0,0.00031349,7]
[407790687,1772803856847,-2000.0,0.000314,2]
[407790688,1772803856861,-19890.27082099,0.0003143,4]
[407790689,1772803856876,-150.0,0.0003147,2]
[407790690,1772803856891,-524.0,0.00031493,2]
[407790691,1772803856905,-441.0,0.00031493,2]
[407790692,1772803856919,-635.0,0.00031493,2]
[407790693,1772803856930,-582.0,0.00031493,2]
[407790694,1772803856944,-964.0,0.00031493,2]
[407790695,1772803856957,-580.0,0.00031493,2]
[407790696,1772803856971,-563.0,0.00031493,2]
[407790697,1772803856987,-470.0,0.00031493,2]
[407790698,1772803857001,-1000.0,0.00031521,2]
[407790699,1772803857016,-4341.52,0.000316,7]
[407790700,1772803857030,-739.2,0.00031602,30]
[407790701,1772803857044,-604.8,0.00031602,30]
[407790702,1772803857058,-1000.0,0.00031623,7]
[407790703,1772803857072,-524.0,0.00031767,2]
[407790704,1772803857085,-441.0,0.00031767,2]
[407790705,1772803857098,-635.0,0.00031767,2]
[407790706,1772803857114,-582.0,0.00031767,2]
[407790707,1772803857127,-964.0,0.00031767,2]
[407790708,1772803857140,-580.0,0.00031767,2]
[407790709,1772803857152,-563.0,0.00031767,2]
[407790710,1772803857163,-1000.0,0.00031897,7]
[407790711,1772803857175,-350.0,0.00032,120]
[407790712,1772803857192,-25014.7329079,0.00032,120]
[407790713,1772803857203,-160.0,0.00032,120]
[407790714,1772803857215,-1033.93,0.00032,120]
[407790715,1772803857227,-524.0,0.00032041,2]
[407790716,1772803857244,-441.0,0.00032041,2]
[407790717,1772803857260,-635.0,0.00032041,2]
[407790718,1772803857271,-582.0,0.00032041,2]
[407790719,1772803857282,-964.0,0.00032041,2]
[407790720,1772803857295,-580.0,0.00032041,2]
[407790721,1772803857307,-563.0,0.00032041,2]
[407790722,1772803857320,-150.0,0.0003215,120]
[407790723,1772803857332,-150.0,0.00032163,2]
[407790724,1772803857345,-150.0,0.00032163,2]
[407790725,1772803857357,-150.0,0.00032163,2]
[407790726,1772803857369,-150.0,0.00032163,2]
[407790727,1772803857381,-150.0,0.00032163,2]
[407790728,1772803857393,-1279.0,0.00032163,2]
[407790729,1772803857406,-150.0,0.00032163,2]
[407790730,1772803857419,-1212.0,0.00032163,2]
[407790731,1772803857431,-922.0,0.00032163,2]
[407790732,1772803857444,-3502.0,0.00032163,2]
[407790733,1772803857456,-619.0,0.00032163,2]
[407790734,1772803857469,-1000.0,0.00032171,7]
[407790735,1772803857481,-200.0,0.00032179,23]
[407790736,1772803857497,-540.23385157,0.00032315,2]
[407790737,1772803857509,-462.0,0.00032315,2]
[407790738,1772803857521,-641.0,0.00032315,2]
[407790739,1772803857532,-600.0,0.00032315,2]
[407790740,1772803857544,-975.58478105,0.00032315,2]
[407790741,1772803857556,-591.10135289,0.00032315,2]
[407790742,1772803857568,-582.66534297,0.00032315,2]
[407790743,1772803857584,-825.0,0.00032383,60]
[407790744,1772803857599,-1000.0,0.00032445,7]
[407790745,1772803857611,-554.58,0.00032548,120]
[407790746,1772803857624,-208362.0,0.00032548,30]
[407790747,1772803857636,-1000.0,0.00032719,7]
[407790748,1772803857647,-2000.0,0.000328,7]
[407790749,1772803857667,-546.0,0.00032857,18]
[407790750,1772803857679,-475.29399688,0.00032876,2]
[407790751,1772803857692,-462.12586195,0.00032876,2]
[407790752,1772803857704,-500.0,0.00032876,2]
[407790753,1772803857717,-394.25270121,0.00032876,2]
[407790754,1772803857728,-256.99259701,0.00032876,2]
[407790755,1772803857743,-500.0,0.00032876,2]
[407790756,1772803857755,-500.0,0.00032876,2]
[407790757,1772803857767,-500.0,0.00032876,2]
[407790758,1772803857779,-441.7644144,0.00032876,2]
[407790759,1772803857791,-500.0,0.00032876,2]
[407790760,1772803857803,-500.0,0.00032876,2]
[407790761,1772803857816,-500.0,0.00032876,2]
[407790762,1772803857829,-383.703071,0.00032876,2]
[407790763,1772803857841,-451.76520094,0.00032876,2]
[407790764,1772803857852,-418.5800662,0.00032876,2]
[407790765,1772803857864,-3258.999999,0.00032877,120]
[407790766,1772803857877,-243.97460639,0.00032899,7]
[407790767,1772803857899,-4341.52,0.000329,14]
[407790768,1772803857910,-412.90393433,0.00032964,26]
[407790769,1772803857923,-1000.0,0.00032993,7]
[407790770,1772803857935,-563.075186,0.00033,14]
[407790771,1772803857947,-169.0,0.00033,14]
[407790772,1772803857959,-360.0,0.00033,14]
[407790773,1772803857971,-169.0,0.00033,14]
[407790774,1772803857984,-162.108281,0.00033018,26]
[407790775,1772803857998,-150.0,0.00033043,2]
[407790776,1772803858010,-360.0,0.00033151,30]
[407790777,1772803858023,-1000.0,0.00033267,7]
[407790778,1772803858035,-360.0,0.00033425,30]
[407790779,1772803858047,-1000.0,0.00033541,7]
[407790780,1772803858059,-225.42379336,0.00033599,2]
[407790781,1772803858071,-152.0,0.00033609,3]
[407790782,1772803858083,-554.58,0.00033621,120]
[407790783,1772803858096,-208362.0,0.00033621,30]
[407790784,1772803858108,-360.0,0.00033699,30]
[407790785,1772803858120,-1000.0,0.00033815,7]
[407790786,1772803858131,-1003.11,0.00033855,30]
[407790787,1772803858143,-360.0,0.00033973,30]
[407790788,1772803858155,-200.0,0.00034,120]
[407790789,1772803858167,-14099.29598962,0.00034,4]
[407790790,1772803858179,-832.78,0.00034,30]
[407790791,1772803858191,-1000.0,0.00034089,7]
[407790792,1772803858203,-4341.52,0.000341,14]
[407790793,1772803858215,-3567.05,0.000341,14]
[407790794,1772803858228,-160.0,0.0003412,11]
[407790795,1772803858241,-1000.0,0.0003426,2]
[407790796,1772803858253,-15095.69362712,0.0003429,2]
[407790797,1772803858265,-2000.0,0.000343,7]
[407790798,1772803858278,-1000.0,0.00034363,7]
[407790799,1772803858290,-2803.0,0.00034441,11]
[407790800,1772803858303,-554.58,0.00034492,120]
[407790801,1772803858315,-170.0,0.00034521,30]
[407790802,1772803858328,-360.0,0.00034521,30]
[407790803,1772803858340,-170.0,0.00034521,30]
[407790804,1772803858353,-252.21,0.00034621,60]
[407790805,1772803858365,-1000.0,0.00034637,7]
[407790806,1772803858377,-208362.0,0.00034694,30]
[407790807,1772803858390,-150.0,0.00034696,2]
[407790808,1772803858403,-1500.0,0.00034795,2]
[407790809,1772803858415,-825.0,0.00034859,90]
[407790810,1772803858428,-388.04272933,0.0003488,120]
[407790811,1772803858440,-1000.0,0.00034911,7]
[407790812,1772803858452,-151.0,0.00034997,14]
[407790813,1772803858465,-5000.0,0.00035,60]
[407790814,1772803858477,-700.63241713,0.00035,30]
[407790815,1772803858492,-500.0,0.00035,2]
[407790816,1772803858505,-340000.0,0.00035,4]
[407790817,1772803858517,-25470.64882966,0.00035,120]
[407790818,1772803858529,-394.543265,0.00035,7]
[407790819,1772803858541,-394.543265,0.00035,7]
[407790820,1772803858553,-151.0,0.00035,7]
[407790821,1772803858565,-394.543265,0.00035,7]
[407790822,1772803858581,-394.543265,0.00035,7]
[407790823,1772803858594,-332.483725,0.00035,7]
[407790824,1772803858606,-332.483725,0.00035,7]
[407790825,1772803858619,-332.483725,0.00035,7]
[407790826,1772803858632,-332.483725,0.00035,7]
[407790827,1772803858643,-151.0,0.00035,7]
[407790828,1772803858658,-241.908339,0.00035,7]
[407790829,1772803858671,-225.902031,0.00035,7]
[407790830,1772803858683,-225.902031,0.00035,7]
[407790831,1772803858695,-225.902031,0.00035,7]
[407790832,1772803858707,-225.902031,0.00035,7]
[407790833,1772803858719,-650.032813,0.00035,7]
[407790834,1772803858730,-650.032813,0.00035,7]
[407790835,1772803858745,-650.032813,0.00035,7]
[407790836,1772803858757,-650.032813,0.00035,7]
[407790837,1772803858769,-243.067122,0.00035,7]
[407790838,1772803858781,-243.067122,0.00035,7]
[407790839,1772803858794,-151.0,0.00035,7]
[407790840,1772803858805,-243.067122,0.00035,7]
[407790841,1772803858818,-243.067122,0.00035,7]
[407790842,1772803858830,-1068.578217,0.00035,7]
[407790843,1772803858842,-1068.578217,0.00035,7]
[407790844,1772803858854,-1068.578217,0.00035,7]
[407790845,1772803858868,-1068.578217,0.00035,7]
[407790846,1772803858880,-151.0,0.00035,7]
[407790847,1772803858892,-151.0,0.00035,7]
[407790848,1772803858904,-507.054478,0.00035,7]
[407790849,1772803858915,-507.054478,0.00035,7]
[407790850,1772803858927,-507.054478,0.00035,7]
[407790851,1772803858939,-507.054478,0.00035,7]
[407790852,1772803858951,-151.0,0.00035,7]
[407790853,1772803858963,-151.0,0.00035,7]
[407790854,1772803858975,-259.150494,0.00035,7]
[407790855,1772803858987,-200.0,0.00035,3]
[407790856,1772803858998,-1000.0,0.00035,7]
[407790857,1772803859010,-152.0,0.00035014,4]
[407790858,1772803859021,-183.0,0.00035068,10]
[407790859,1772803859034,-2000.0,0.000351,2]
[407790860,1772803859045,-150.0,0.00035163,2]
[407790861,1772803859057,-1279.0,0.00035163,2]
[407790862,1772803859068,-150.0,0.00035163,2]
[407790863,1772803859079,-1212.0,0.00035163,2]
[407790864,1772803859091,-922.0,0.00035163,2]
[407790865,1772803859102,-3502.0,0.00035163,2]
[407790866,1772803859113,-619.0,0.00035163,2]
[407790867,1772803859124,-554.58,0.00035184,120]
[407790868,1772803859141,-554.58,0.00035184,120]
[407790869,1772803859157,-554.58,0.00035184,120]
[407790870,1772803859169,-554.58,0.00035184,120]
[407790871,1772803859182,-554.72475892,0.00035184,120]
[407790872,1772803859195,-1000.0,0.00035185,7]
[407790873,1772803859207,-1033.93,0.000352,120]
[407790874,1772803859219,-2915.87,0.00035254,2]
[407790875,1772803859232,-3567.05,0.000354,14]
[407790876,1772803859244,-1000.0,0.00035459,7]
[407790877,1772803859257,-291.55842694,0.00035589,120]
[407790878,1772803859268,-291.55842694,0.00035589,120]
[407790879,1772803859280,-4341.52,0.000356,14]
[407790880,1772803859293,-176.80081422,0.00035608,45]
[407790881,1772803859305,-253.52176029,0.00035608,45]
[407790882,1772803859317,-10674.48940349,0.0003561,2]
[407790883,1772803859328,-683.77515311,0.00035616,120]
[407790884,1772803859340,-502.85763941,0.00035616,7]
[407790885,1772803859351,-502.85763941,0.00035616,7]
[407790886,1772803859363,-502.85763941,0.00035616,7]
[407790887,1772803859374,-502.85763941,0.00035616,7]
[407790888,1772803859387,-502.85763941,0.00035616,7]
[407790889,1772803859398,-502.85763941,0.00035616,7]
[407790890,1772803859410,-502.85763941,0.00035616,7]
[407790891,1772803859422,-502.85763941,0.00035616,7]
[407790892,1772803859434,-502.85763941,0.00035616,7]
[407790893,1772803859445,-502.85763941,0.00035616,7]
[407790894,1772803859457,-502.85763941,0.00035616,7]
[407790895,1772803859469,-502.85763941,0.00035616,7]
[407790896,1772803859480,-502.85763941,0.00035616,7]
[407790897,1772803859493,-502.85763941,0.00035616,7]
[407790898,1772803859504,-502.85763941,0.00035616,7]
[407790899,1772803859516,-502.85763941,0.00035616,7]
[407790900,1772803859527,-502.85763941,0.00035616,7]
[407790901,1772803859540,-502.85763941,0.00035616,7]
[407790902,1772803859551,-502.85763941,0.00035616,7]
[407790903,1772803859563,-502.85763941,0.00035616,7]
[407790904,1772803859575,-502.85763941,0.00035616,7]
[407790905,1772803859589,-502.85763941,0.00035616,7]
[407790906,1772803859601,-502.85763941,0.00035616,7]
[407790907,1772803859614,-502.85763941,0.00035616,7]
[407790908,1772803859628,-502.85763941,0.00035616,7]
[407790909,1772803859640,-502.85763941,0.00035616,7]
[407790910,1772803859651,-502.85763941,0.00035616,7]
[407790911,1772803859663,-502.85763941,0.00035616,7]
[407790912,1772803859676,-502.85763941,0.00035616,7]
[407790913,1772803859687,-502.85763941,0.00035616,7]
[407790914,1772803859698,-502.85763941,0.00035616,7]
[407790915,1772803859710,-502.85763941,0.00035616,7]
[407790916,1772803859721,-502.85763941,0.00035616,7]
[407790917,1772803859732,-502.85763941,0.00035616,7]
[407790918,1772803859744,-502.85763941,0.00035616,7]
[407790919,1772803859755,-502.85763941,0.00035616,7]
[407790920,1772803859766,-502.85763941,0.00035616,7]
[407790921,1772803859778,-502.85763941,0.00035616,7]
[407790922,1772803859790,-502.85763941,0.00035616,7]
[407790923,1772803859802,-502.85763941,0.00035616,7]
[407790924,1772803859813,-502.85763941,0.00035616,7]
[407790925,1772803859825,-502.85763941,0.00035616,7]
[407790926,1772803859837,-502.85763941,0.00035616,7]
[407790927,1772803859849,-502.85763941,0.00035616,7]
[407790928,1772803859860,-502.85763941,0.00035616,7]
[407790929,1772803859871,-502.85763941,0.00035616,7]
[407790930,1772803859883,-502.85763941,0.00035616,7]
[407790931,1772803859894,-502.85763941,0.00035616,7]
[407790932,1772803859905,-502.85763941,0.00035616,7]
[407790933,1772803859917,-502.85763941,0.00035616,7]
[407790934,1772803859928,-502.85763941,0.00035616,7]
[407790935,1772803859939,-502.85763941,0.00035616,7]
[407790936,1772803859950,-502.85763941,0.00035616,7]
[407790937,1772803859961,-502.85763941,0.00035616,7]
[407790938,1772803859972,-502.85763941,0.00035616,7]
[407790939,1772803859984,-502.85763941,0.00035616,7]
[407790940,1772803859996,-502.85763941,0.00035616,7]
[407790941,1772803860008,-502.85763941,0.00035616,7]
[407790942,1772803860019,-502.85763941,0.00035616,7]
[407790943,1772803860031,-502.85763941,0.00035616,7]
[407790944,1772803860044,-502.85763941,0.00035616,7]
[407790945,1772803860056,-502.85763941,0.00035616,7]
[407790946,1772803860068,-521.14337174,0.00035616,7]
[407790947,1772803860079,-521.14337174,0.00035616,7]
[407790948,1772803860091,-521.14337174,0.00035616,7]
[407790949,1772803860102,-500.0,0.00035616,7]
[407790950,1772803860115,-521.14337174,0.00035616,7]
[407790951,1772803860126,-500.0,0.00035616,7]
[407790952,1772803860137,-521.14337174,0.00035616,7]
[407790953,1772803860148,-500.0,0.00035616,7]
[407790954,1772803860159,-500.0,0.00035616,7]
[407790955,1772803860170,-521.14337174,0.00035616,7]
[407790956,1772803860182,-500.0,0.00035616,7]
[407790957,1772803860194,-376.01320805,0.00035616,7]
[407790958,1772803860205,-500.0,0.00035616,7]
[407790959,1772803860216,-500.0,0.00035616,7]
[407790960,1772803860228,-500.0,0.00035616,7]
[407790961,1772803860241,-500.0,0.00035616,7]
[407790962,1772803860253,-500.0,0.00035616,7]
[407790963,1772803860264,-500.0,0.00035616,7]
[407790964,1772803860275,-500.0,0.00035616,7]
[407790965,1772803860287,-500.0,0.00035616,7]
[407790966,1772803860297,-500.0,0.00035616,7]
[407790967,1772803860309,-500.0,0.00035616,7]
[407790968,1772803860320,-500.0,0.00035616,7]
[407790969,1772803860331,-500.0,0.00035616,7]
[407790970,1772803860342,-500.0,0.00035616,7]
[407790971,1772803860354,-521.14337174,0.00035616,7]
[407790972,1772803860365,-521.14337174,0.00035616,7]
[407790973,1772803860377,-521.14337174,0.00035616,7]
[407790974,1772803860393,-500.0,0.00035616,7]
[407790975,1772803860406,-500.0,0.00035616,7]
[407790976,1772803861114,-500.0,0.00035616,7]
[407790977,1772803861146,-500.0,0.00035616,7]
[407790978,1772803861179,-500.0,0.00035616,7]
[407790979,1772803861190,-521.14337174,0.00035616,7]
[407790980,1772803861201,-500.0,0.00035616,7]
[407790981,1772803861210,-500.0,0.00035616,7]
[407790982,1772803861220,-500.0,0.00035616,7]
[407790983,1772803861229,-192.61,0.00035616,2]
[407790984,1772803861241,-1000.0,0.00035616,10]
[407790985,1772803861251,-1000.0,0.00035616,10]